bitfinex-derivatives/quotes_SOLF0:USTF0_20250124
["timestamp","ask_amount","ask_price","bid_price","bid_amount"]
[1737695286269,3.8877,257.26,257.19,3.91611758]
[1737695287066,3.8871,257.3,257.23,3.8881]
[1737695287267,2.3863,257.32,257.19,0.02741758]
[1737695287466,2.3863,257.32,257.12,24.56154724]
[1737695287675,2.3863,257.32,257.1,3.8899]
[1737695287676,3.8891,257.17,257.1,3.8899]
[1737695287863,24.56154724,257.25,257.05,2.3972]
[1737695288267,24.56154724,257.3,257.05,2.3972]
[1737695288569,2.3863,257.32,257.06,1.7719]
[1737695288874,0.02534146,257.2,257.18,3.8889]
[1737695289170,3.8878,257.25,257.18,3.8889]
[1737695289374,0.02917629,257.22,257.21,3.8883]
[1737695289573,2.3863,257.32,257.12,24.56154724]
[1737695289777,24.56154724,257.41,257.17,24.56154724]
[1737695289977,24.56154724,257.41,257.18,3.469]
[1737695290475,24.56154724,257.41,257.19,2.3835]
[1737695290670,24.56154724,257.41,257.28,3.8872]
[1737695291376,3.8866,257.34,257.27,0.02637287]
[1737695291773,24.56154724,257.41,257.27,0.02637287]
[1737695291973,3.8862,257.36,257.28,3.8872]
[1737695292472,3.8858,257.39,257.3,3.887]
[1737695292676,24.56154724,257.37,257.19,2.3835]
[1737695292976,24.56154724,257.37,257.32,0.02860424]
[1737695293176,3.8869,257.31,257.25,0.02949891]
[1737695293474,24.56154724,257.37,257.25,0.02949891]
[1737695293475,24.56154724,257.33,257.25,0.02676579]
[1737695293676,3.8881,257.24,257.09,2.3304]
[1737695293871,24.56154724,257.33,257.09,2.3304]
[1737695294075,24.56154724,257.28,257.09,2.3304]
[1737695294271,3.8886,257.2,257.09,2.3304]
[1737695294774,0.02707426,257.17,257.12,0.02601425]
[1737695295374,0.02707426,257.17,257.14,3.8894]
[1737695295575,0.02707426,257.17,257.12,0.02601425]
[1737695296878,0.02707426,257.17,257.15,3.8892]
[1737695297976,7.426e-05,257.17,257.15,3.8892]
[1737695301677,7.426e-05,257.17,257.16,2.3618]
[1737695303281,7.426e-05,257.17,257.15,3.8892]
[1737695304481,15.09430726,257.47,257.24,3.8879]
[1737695304782,4.3006,257.6,257.34,15.09430726]
[1737695304982,4.3006,257.6,257.39,15.09430726]
[1737695305175,4.3006,257.6,257.47,3.8844]
[1737695305375,1.7722,257.64,257.39,15.09430726]
[1737695305581,3.8828,257.59,257.45,3.8846]
[1737695305781,15.09430726,257.6,257.49,0.02837894]
[1737695306083,1.7722,257.64,257.49,0.02837894]
[1737695307481,3.8833,257.55,257.49,0.02837894]
[1737695307679,15.09430726,257.6,257.34,15.09430726]
[1737695307879,4.0771,257.54,257.34,15.09430726]
[1737695308885,0.02454455,257.47,257.41,0.02638094]
[1737695309785,0.02454455,257.47,257.44,3.8849]
[1737695309984,0.02454455,257.47,257.41,0.02638094]
[1737695312487,0.02454455,257.47,257.41,3.91158094]
[1737695313484,0.02454455,257.47,257.41,0.02638094]
[1737695314085,3.8851,257.43,257.41,0.02638094]
[1737695314684,3.8851,257.43,257.28,1.7538]
[1737695314886,3.8854,257.41,257.28,1.7538]
[1737695315588,3.8856,257.4,257.27,15.09430726]
[1737695315789,3.8856,257.4,257.33,3.8865]
[1737695315990,0.02604414,257.36,257.33,3.8865]
[1737695316191,0.02604414,257.36,257.31,0.02552547]
[1737695316891,0.02604414,257.36,257.34,3.8864]
[1737695318391,4.414e-05,257.36,257.34,3.8864]
[1737695321197,1.6571,257.51,257.32,15.09430726]
[1737695321498,1.7434,257.52,257.37,15.09430726]
[1737695321796,3.8831,257.57,257.37,15.09430726]
[1737695322298,0.02609145,257.5,257.44,0.02484977]
[1737695322495,0.02609145,257.5,257.47,3.8844]
[1737695322795,0.02609145,257.5,257.44,0.02484977]
[1737695322990,15.09430726,257.58,257.44,0.02484977]
[1737695322991,5.74689871,257.58,257.44,0.02484977]
[1737695323194,42.53307986,257.89,257.54,53.8101488]
[1737695323396,42.53307986,257.89,257.63,15.09430726]
[1737695323397,4.237,257.86,257.63,15.09430726]
[1737695323598,3.8798,257.78,257.64,3.8818]
[1737695323893,3.8798,257.78,257.57,15.09430726]
[1737695323894,15.09430726,257.82,257.57,15.09430726]
[1737695324100,65.22687015,257.91,257.8,15.09430726]
[1737695324395,65.22687015,257.91,257.75,15.09430726]
[1737695324592,65.22687015,257.91,257.85,3.8786]
[1737695324796,65.22687015,257.91,257.81,0.0288337]
[1737695326100,15.09430726,257.99,257.81,0.0288337]
[1737695326396,15.09430726,257.99,257.67,15.09430726]
[1737695326695,15.09430726,257.94,257.67,15.09430726]
[1737695326896,15.09430726,257.94,257.8,0.0249182]
[1737695327489,15.09430726,257.89,257.8,0.0249182]
[1737695327693,15.09430726,257.89,257.71,3.8808]
[1737695327893,15.09430726,257.89,257.82,0.02474201]
[1737695328197,15.09430726,257.89,257.77,3.88]
[1737695328599,15.09430726,257.89,257.67,15.09430726]
[1737695328896,15.09430726,257.89,257.74,3.8803]
[1737695329200,0.02697009,257.84,257.79,0.02467356]
[1737695331297,0.02697009,257.84,257.66,15.09430726]
[1737695331501,15.09430726,257.92,257.66,15.09430726]
[1737695331702,15.09430726,257.92,257.76,3.88]
[1737695331899,15.09430726,257.92,257.66,15.09430726]
[1737695332401,0.02731764,257.82,257.76,0.02875063]
[1737695332602,0.02731764,257.82,257.66,15.09430726]
[1737695332802,15.09430726,257.92,257.76,0.02738669]
[1737695332998,0.02492123,257.77,257.66,15.09430726]
[1737695333207,3.8779,257.91,257.81,0.02472829]
[1737695333399,15.09430726,257.92,257.66,15.09430726]
[1737695333706,15.09430726,257.92,257.83,0.02726683]
[1737695333901,15.09430726,257.92,257.66,15.09430726]
[1737695334303,3.8784,257.88,257.77,3.8799]
[1737695334500,15.09430726,257.92,257.71,15.09430726]
[1737695334805,0.0267421,257.85,257.8,0.02908392]
[1737695336607,0.0267421,257.85,257.83,3.879]
[1737695337304,0.0267421,257.85,257.82,3.8791]
[1737695337508,0.0267421,257.85,257.8,0.02908392]
[1737695338509,0.0267421,257.85,257.81,3.8793]
[1737695338707,0.0267421,257.85,257.8,0.02908392]
[1737695339105,0.0267421,257.85,257.82,3.8792]
[1737695339407,0.0267421,257.85,257.8,0.02908392]
[1737695339611,0.0267421,257.85,257.83,3.879]
[1737695339810,0.0267421,257.85,257.8,0.02908392]
[1737695340205,0.0267421,257.85,257.81,3.8793]
[1737695340411,0.0267421,257.85,257.8,0.02908392]
[1737695341513,0.0267421,257.85,257.66,15.09430726]
[1737695342016,15.09430726,257.92,257.66,15.09430726]
[1737695342519,3.8795,257.8,257.74,3.8803]
[1737695342726,1.6967,257.99,257.76,0.02798015]
[1737695342727,0.02490703,257.82,257.76,0.02798015]
[1737695342923,2.4541,257.79,257.65,4.96500117]
[1737695343924,3.8803,257.75,257.69,3.8811]
[1737695344125,3.90823328,257.75,257.69,0.02491635]
[1737695344521,15.09430726,257.7,257.46,15.09430726]
[1737695345024,15.09430726,257.77,257.51,15.09430726]
[1737695345723,0.02575082,257.67,257.61,3.9103947]
[1737695345924,0.02575082,257.67,257.61,0.0280947]
[1737695346125,0.02575082,257.67,257.51,15.09430726]
[1737695346427,15.09430726,257.77,257.61,0.02782306]
[1737695346622,0.02469249,257.62,257.61,3.91022306]
[1737695346927,15.09430726,257.77,257.51,15.09430726]
[1737695347120,3.8821,257.63,257.59,0.02980849]
[1737695347320,0.0257103,257.64,257.59,0.02980849]
[1737695347523,15.09430726,257.77,257.46,17.42400726]
[1737695347524,15.09430726,257.77,257.51,15.09430726]
[1737695347725,0.0275946,257.64,257.59,0.02483406]
[1737695347923,0.0275946,257.64,257.6,3.8824]
[1737695348230,0.02543631,257.64,257.59,0.02575866]
[1737695348531,3.8822,257.63,257.59,0.02575866]
[1737695348727,0.02543631,257.64,257.59,0.02575866]
[1737695349927,3.8823,257.62,257.59,0.02575866]
[1737695350528,0.02543631,257.64,257.59,0.02575866]
[1737695350729,0.02543631,257.64,257.46,15.09430726]
[1737695350924,3.4529,257.75,257.46,15.09430726]
[1737695351124,15.09430726,257.71,257.46,15.09430726]
[1737695351530,3.4529,257.75,257.51,15.09430726]
[1737695351924,0.02477795,257.66,257.65,3.8817]
[1737695352230,3.4529,257.75,257.56,15.09430726]
[1737695352429,0.02461004,257.68,257.63,0.02977481]
[1737695353530,3.8819,257.65,257.63,0.02977481]
[1737695353731,0.02461004,257.68,257.63,0.02977481]
[1737695354032,0.02461004,257.68,257.51,15.09430726]
[1737695354433,3.4529,257.75,257.51,15.09430726]
[1737695354624,15.09430726,257.72,257.51,15.09430726]
[1737695355029,0.02549234,257.64,257.59,0.02642962]
[1737695355433,0.02761008,257.64,257.62,3.8821]
[1737695355633,1.7462,257.83,257.61,15.09430726]
[1737695355831,1.7462,257.83,257.66,15.09430726]
[1737695356029,15.09430726,257.82,257.53,15.09430726]
[1737695356634,15.09430726,257.82,257.63,0.02845004]
[1737695356933,0.02610434,257.69,257.68,0.02509011]
[1737695357131,15.09430726,257.82,257.68,0.02509011]
[1737695357326,0.02634906,257.71,257.68,0.02509011]
[1737695358737,0.02634906,257.71,257.68,3.90639011]
[1737695359038,0.02634906,257.71,257.68,0.02509011]
[1737695359437,0.02634906,257.71,257.69,3.8812]
[1737695360639,15.09430726,257.94,257.69,15.09430726]
[1737695360839,1.7608,257.93,257.75,15.09430726]
[1737695361138,3.8786,257.87,257.79,3.8796]
[1737695361633,3.8779,257.91,257.83,3.879]
[1737695361834,0.02969885,257.86,257.8,0.02491969]
[1737695364241,0.02969885,257.86,257.81,3.8793]
[1737695365039,0.02969885,257.86,257.8,0.02491969]
[1737695365739,0.02969885,257.86,257.64,16.84610726]
[1737695365940,4.1832,257.89,257.64,15.09430726]
[1737695366437,3.8801,257.77,257.64,15.09430726]
[1737695366641,4.66,257.98,257.59,2.3541]
[1737695366642,15.09430726,257.98,257.69,15.09430726]
[1737695366838,4.1832,257.97,257.75,15.09430726]
[1737695367038,0.02767768,257.86,257.79,0.02532467]
[1737695367245,0.02767768,257.86,257.75,15.09430726]
[1737695367443,0.02767768,257.86,257.8,0.02721227]
[1737695367944,0.02767768,257.86,257.81,3.8792]
[1737695368245,0.02767768,257.86,257.8,0.02721227]
[1737695368641,0.02767768,257.86,257.83,3.8789]
[1737695368945,0.02767768,257.86,257.8,0.02721227]
[1737695369240,7.768e-05,257.86,257.85,3.8788]
[1737695369444,7.768e-05,257.86,257.81,15.09430726]
[1737695370346,7.768e-05,257.86,257.8,0.02721227]
[1737695371638,7.768e-05,257.86,257.81,3.8792]
[1737695371942,7.768e-05,257.86,257.8,0.02721227]
[1737695372143,7.768e-05,257.86,257.82,3.8791]
[1737695372537,7.768e-05,257.86,257.8,0.02721227]
[1737695372740,7.768e-05,257.86,257.81,3.8793]
[1737695372941,7.768e-05,257.86,257.8,0.02721227]
[1737695378945,7.768e-05,257.86,257.81,3.8792]
[1737695379146,7.768e-05,257.86,257.8,0.02721227]
[1737695379450,15.94990494,258.1,257.82,15.09430726]
[1737695379644,4.1527,258.09,257.94,3.8774]
[1737695379845,4.1527,258.09,257.87,15.09430726]
[1737695380046,15.94990494,258.1,257.97,15.09430726]
[1737695380341,15.94990494,258.1,257.92,15.09430726]
[1737695380546,0.02635477,258.06,258.01,0.02897386]
[1737695382348,15.94990494,258.1,258.09,3.8751]
[1737695382551,15.94990494,258.1,258.0,15.09430726]
[1737695382850,15.09430726,258.23,258.0,15.09430726]
[1737695383544,0.02665928,258.14,258.09,0.02666309]
[1737695385949,3.8749,258.11,258.09,0.02666309]
[1737695386154,3.8749,258.11,257.93,2.4799]
[1737695386351,15.09430726,258.18,257.93,2.4799]
[1737695386554,3.8755,258.07,257.94,3.8773]
[1737695386954,15.09430726,258.18,257.93,2.4799]
[1737695387150,0.02561367,258.03,257.97,3.90546873]
[1737695387350,15.09430726,258.13,257.87,15.09430726]
[1737695387555,15.09430726,258.18,257.97,0.02768647]
[1737695387749,3.8747,258.12,258.0,3.8765]
[1737695387950,3.8747,258.12,257.92,15.09430726]
[1737695388351,3.875,258.1,258.0,3.8764]
[1737695388556,15.09430726,258.18,257.92,15.09430726]
[1737695388756,0.02837901,258.08,258.02,0.02504864]
[1737695388953,0.02837901,258.08,258.01,3.8763]
[1737695389154,3.8751,258.1,258.02,0.02504421]
[1737695389460,3.90429907,258.07,258.02,0.02504421]
[1737695389757,3.8755,258.07,257.92,15.09430726]
[1737695389952,3.8755,258.07,258.02,0.02593415]
[1737695389953,3.90363456,258.07,258.02,0.02593415]
[1737695390355,3.8758,258.05,258.02,0.02593415]
[1737695390658,0.02813456,258.07,258.02,0.02593415]
[1737695390855,3.456e-05,258.07,258.05,3.8756]
[1737695394561,1.7414,258.27,258.03,19.11060726]
[1737695394562,15.09430726,258.33,258.21,3.8732]
[1737695394758,15.09430726,258.33,258.08,15.09430726]
[1737695395358,3.8721,258.3,258.08,15.09430726]
[1737695395564,3.8721,258.3,258.05,15.09430726]
[1737695395758,3.8721,258.3,258.03,4.0163]
[1737695395759,15.09430726,258.33,258.16,0.02726533]
[1737695395960,3.8726,258.27,258.12,0.8114]
[1737695396161,1.7414,258.43,258.12,0.8114]
[1737695396162,11.69,258.59,258.23,3.873]
[1737695396461,11.69,258.59,258.12,0.8114]
[1737695396462,1.7076,258.37,258.15,15.09430726]
[1737695396963,3.89622708,258.29,258.23,0.02491176]
[1737695397162,0.02392708,258.29,258.23,0.02491176]
[1737695397463,0.02392708,258.29,258.03,4.0163]
[1737695397464,15.11823434,258.29,258.09,3.8751]
[1737695397664,15.09430726,258.24,258.03,2.3636]
[1737695397862,1.6632,258.23,258.03,2.3636]
[1737695398064,1.6632,258.23,258.05,15.09430726]
[1737695398665,0.02814581,258.17,258.11,0.02802786]
[1737695400570,4.581e-05,258.17,258.15,3.8742]
[1737695401261,4.581e-05,258.17,258.11,0.02802786]
[1737695401567,3.8747,258.13,258.11,0.02802786]
[1737695401866,4.581e-05,258.17,258.0,15.09430726]
[1737695402066,15.09430726,258.21,258.0,15.09430726]
[1737695402371,15.09430726,258.16,257.94,15.09430726]
[1737695402662,3.8741,258.16,257.99,15.09430726]
[1737695402861,16.79210726,258.26,258.04,15.09430726]
[1737695403059,0.02675007,258.1,258.06,3.8755]
[1737695403270,16.79210726,258.26,258.04,15.09430726]
[1737695403271,3.874,258.17,258.04,15.09430726]
[1737695403468,16.79210726,258.26,258.04,15.09430726]
[1737695403768,3.8729,258.24,258.04,15.09430726]
[1737695404163,1.6978,258.26,258.09,15.09430726]
[1737695404364,0.02201663,258.17,258.16,3.8741]
[1737695404559,15.09430726,258.31,257.94,26.78430726]
[1737695404560,4.98,258.53,258.14,15.09430726]
[1737695404761,4.0643,258.4,258.19,15.09430726]
[1737695405664,4.0643,258.4,258.27,0.02766657]
[1737695406064,3.8707,258.39,258.27,0.02766657]
[1737695406268,4.0643,258.4,258.27,0.02766657]
[1737695406559,1.7139,258.4,258.32,3.8717]
[1737695406765,1.7139,258.4,258.24,15.09430726]
[1737695406963,1.7139,258.4,258.33,0.02714681]
[1737695407367,3.8695,258.47,258.34,3.8714]
[1737695407673,3.8695,258.47,258.29,15.09430726]
[1737695407867,1.7426,258.48,258.38,0.02829848]
[1737695408371,15.09430726,258.54,258.38,0.02829848]
[1737695408573,16.83690726,258.54,258.3,4.0602]
[1737695408872,16.83690726,258.54,258.43,0.02846559]
[1737695409072,1.7426,258.54,258.43,0.02846559]
[1737695409476,3.8691,258.5,258.43,0.02846559]
[1737695409674,1.7426,258.54,258.43,0.02846559]
[1737695411369,3.8691,258.5,258.43,0.02846559]
[1737695411576,1.7426,258.54,258.43,0.02846559]
[1737695411975,2.4768,258.6,258.43,0.02846559]
[1737695412273,2.4768,258.6,258.39,15.09430726]
[1737695412467,2.4768,258.6,258.49,0.02939977]
[1737695412672,3.868,258.57,258.49,0.02939977]
[1737695412867,2.4768,258.6,258.49,0.02939977]
[1737695413065,1.7049,258.63,258.49,15.12370703]
[1737695413269,1.7049,258.63,258.54,3.8683]
[1737695413571,1.7049,258.63,258.49,15.12370703]
[1737695413572,1.7049,258.63,258.49,15.09430726]
[1737695413773,1.7049,258.63,258.56,0.02684718]
[1737695414273,3.867,258.64,258.56,3.89484718]
[1737695414471,3.4701,258.72,258.56,0.02684718]
[1737695415274,15.09430726,258.71,258.56,0.02684718]
[1737695415474,15.09430726,258.66,258.56,0.02684718]
[1737695415674,3.8677,258.59,258.56,0.02684718]
[1737695416173,15.09430726,258.71,258.56,0.02684718]
[1737695416375,15.09430726,258.71,258.31,26.78430726]
[1737695416376,15.09430726,258.66,258.46,15.09430726]
[1737695416777,3.8675,258.6,258.47,3.8693]
[1737695417072,3.4701,258.72,258.52,15.09430726]
[1737695417475,3.867,258.64,258.52,15.09430726]
[1737695417675,0.02450584,258.63,258.57,0.02936452]
[1737695420672,3.89160584,258.63,258.57,0.02936452]
[1737695421078,0.02450584,258.63,258.57,0.02936452]
[1737695421274,0.02450584,258.63,258.42,15.09430726]
[1737695421477,15.09430726,258.66,258.42,15.09430726]
[1737695421682,3.8689,258.51,258.42,18.96430726]
[1737695421882,3.8689,258.51,258.42,15.09430726]
[1737695422077,15.09430726,258.66,258.42,15.09430726]
[1737695422277,3.8689,258.51,258.43,3.87]
[1737695422482,0.02451196,258.57,258.51,0.02821825]
[1737695422682,1.7959,258.6,258.37,15.09430726]
[1737695422881,3.869,258.5,258.41,3.8703]
[1737695423075,1.7959,258.6,258.37,15.09430726]
[1737695423281,1.7959,258.6,258.42,15.09430726]
[1737695423885,0.02595596,258.54,258.48,0.02724079]
[1737695425479,0.02595596,258.54,258.48,3.89644079]
[1737695425985,0.02595596,258.54,258.51,3.8688]
[1737695426483,0.02595596,258.54,258.48,0.02724079]
[1737695426689,0.02595596,258.54,258.52,3.8686]
[1737695427684,1.7954,258.71,258.52,15.09430726]
[1737695429096,0.02494799,258.63,258.57,0.02557994]
[1737695429293,3.8672,258.62,258.57,0.02557994]
[1737695429489,0.02494799,258.63,258.57,0.02557994]
[1737695429793,3.8675,258.6,258.57,0.02557994]
[1737695430488,3.8678,258.59,258.57,0.02557994]
[1737695430885,3.89204799,258.63,258.57,0.02557994]
[1737695431184,0.02494799,258.63,258.57,0.02557994]
[1737695431589,3.89214799,258.63,258.57,0.02557994]
[1737695432294,0.02494799,258.63,258.57,0.02557994]
[1737695434897,3.89204799,258.63,258.57,0.02557994]
[1737695435496,3.8679,258.58,258.51,3.8688]
[1737695435697,15.09430726,258.62,258.39,15.09430726]
[1737695435893,15.09430726,258.67,258.44,15.09430726]
[1737695436799,3.868,258.57,258.53,0.0259425]
[1737695436999,1.7678,258.56,258.47,3.8693]
[1737695437195,1.7678,258.56,258.44,15.09430726]
[1737695437996,5.6359,258.56,258.49,3.869]
[1737695438192,0.02607055,258.53,258.49,3.869]
[1737695438401,0.02607055,258.53,258.47,0.02654132]
[1737695438598,3.89467055,258.53,258.47,0.02654132]
[1737695439099,0.02607055,258.53,258.47,0.02654132]
[1737695439502,0.02607055,258.53,258.34,15.09430726]
[1737695439699,3.8694,258.48,258.41,3.8703]
[1737695439899,1.7678,258.56,258.34,15.09430726]
[1737695440298,3.8695,258.47,258.34,15.09430726]
[1737695440498,1.7678,258.56,258.34,15.09430726]
[1737695440699,0.02750583,258.43,258.38,0.02447272]
[1737695441000,3.8694,258.48,258.41,3.8703]
[1737695441194,0.02962111,258.43,258.41,3.8703]
[1737695441597,0.02962111,258.43,258.38,0.02847032]
[1737695441796,15.09430726,258.42,258.2,5.1137]
[1737695442000,15.09430726,258.42,257.96,50.4017]
[1737695442001,4.0958,258.41,258.18,19.72767516]
[1737695442196,3.8718,258.32,258.22,3.8731]
[1737695442397,15.09430726,258.37,258.18,4.6333679]
[1737695442797,3.8729,258.25,258.17,106.30264066]
[1737695443098,15.09430726,258.21,258.17,80.69930329]
[1737695443398,0.02720746,258.24,258.17,72.50960329]
[1737695443601,15.09430726,258.3,258.17,72.50960329]
[1737695444304,15.09430726,258.25,258.21,2.1e-07]
[1737695444502,3.8732,258.22,258.21,2.1e-07]
[1737695445105,0.02601602,258.26,258.21,2.1e-07]
[1737695446406,3.873,258.24,258.21,2.1e-07]
[1737695446607,0.02601602,258.26,258.21,2.1e-07]
[1737695447308,3.8728,258.25,258.21,2.1e-07]
[1737695447508,0.02601602,258.26,258.21,2.1e-07]
[1737695448005,3.89871602,258.26,258.21,2.1e-07]
[1737695448206,0.02601602,258.26,258.21,2.1e-07]
[1737695448607,0.02601602,258.26,258.24,3.8728]
[1737695449403,15.09430726,258.4,258.22,4.1512]
[1737695449404,15.09430726,258.4,258.28,3.8722]
[1737695449608,15.09430726,258.4,258.22,4.1512]
[1737695450109,18.96490726,258.4,258.27,3.8724]
[1737695450401,15.09430726,258.4,258.22,4.1512]
[1737695450606,0.02547002,258.36,258.31,0.02598333]
[1737695452911,15.09430726,258.51,258.31,0.02598333]
[1737695453109,15.09430726,258.51,258.3,1.6225]
[1737695453309,3.8691,258.5,258.41,3.8703]
[1737695453703,15.09430726,258.51,258.3,1.6225]
[1737695454212,0.0255424,258.43,258.38,0.02773964]
[1737695454411,15.09430726,258.41,258.19,15.09430726]
[1737695454910,3.8712,258.36,258.26,3.8725]
[1737695455319,15.09430726,258.41,258.26,3.8725]
[1737695455515,0.02935205,258.34,258.28,0.02890616]
[1737695456515,3.8721,258.3,258.28,0.02890616]
[1737695456917,0.02935205,258.34,258.28,0.02890616]
[1737695459013,0.02935205,258.34,258.32,3.8716]
[1737695459214,0.02935205,258.34,258.29,4.2126]
[1737695461317,0.02935205,258.34,258.19,15.09430726]
[1737695461318,11.69,258.57,257.92,80.44506045]
[1737695461616,134.65498928,258.68,258.56,15.09430726]
[1737695461812,40.31876307,258.68,258.67,15.09430726]
[1737695462021,108.71145025,258.7,258.68,3.8662]
[1737695462222,96.31295025,258.7,258.68,3.8662]
[1737695462414,90.45105025,258.7,258.68,3.8662]
[1737695462618,0.02792332,258.72,258.68,3.8662]
[1737695462820,0.02792332,258.72,258.67,15.09430726]
[1737695463017,0.02792332,258.72,258.69,3.866]
[1737695463213,0.02792332,258.72,258.67,15.09430726]
[1737695463717,0.02792332,258.72,258.7,3.8659]
[1737695463911,0.02792332,258.72,258.69,24.22250382]
[1737695464319,2.332e-05,258.72,258.69,24.22250382]
[1737695464713,24.22250382,259.0,258.69,24.22250382]
[1737695464923,4.0554,258.94,258.69,24.22250382]
[1737695465112,1.7569,258.93,258.69,24.22250382]
[1737695465616,3.8632,258.89,258.74,3.8654]
[1737695465818,0.02516427,258.84,258.78,0.02520257]
[1737695469325,6.427e-05,258.84,258.78,0.02520257]
[1737695469914,6.427e-05,258.84,258.83,3.8641]
[1737695474126,1.772,258.99,258.83,3.8641]
[1737695474322,3.8622,258.96,258.85,3.8637]
[1737695474529,1.772,258.99,258.78,24.22250382]
[1737695475323,0.0266382,258.91,258.86,0.02911389]
[1737695479031,0.0266382,258.91,258.89,3.8631]
[1737695480029,0.0266382,258.91,258.86,0.02911389]
[1737695480733,0.0266382,258.91,258.87,3.8634]
[1737695482436,0.0266382,258.91,258.88,3.8632]
[1737695482636,0.0266382,258.91,258.86,0.02911389]
[1737695482935,3.8622,258.96,258.9,3.863]
[1737695483436,1.772,258.99,258.9,3.863]
[1737695483934,3.8619,258.98,258.91,3.8628]
[1737695484536,0.02946721,258.97,258.91,3.8628]
[1737695484839,0.02946721,258.97,258.92,0.02920444]
[1737695485133,6.721e-05,258.97,258.92,0.02920444]
[1737695485332,6.721e-05,258.97,258.95,24.22250382]
[1737695485527,6.721e-05,258.97,258.95,3.8622]
[1737695485732,6.721e-05,258.97,258.92,0.02920444]
[1737695485927,6.721e-05,258.97,258.95,14.88219382]
[1737695486137,6.721e-05,258.97,258.95,18.74439382]
[1737695486333,3.53145352,259.41,258.92,0.02920444]
[1737695486334,14.88219382,259.37,259.1,14.88219382]
[1737695486533,3.8581,259.23,259.05,14.88219382]
[1737695486836,14.88219382,259.27,259.0,14.88219382]
[1737695487533,0.02689003,259.16,259.11,0.02922412]
[1737695488039,0.02744137,259.16,259.11,0.02777764]
[1737695489230,3.8598,259.12,258.95,18.74449382]
[1737695489429,4.0889,259.15,258.95,14.88219382]
[1737695489839,3.8596,259.13,258.96,3.862]
[1737695490039,4.0889,259.15,258.95,14.88219382]
[1737695490241,2.3972,259.15,259.0,14.88219382]
[1737695490641,0.02499608,259.08,259.02,0.02787941]
[1737695491343,0.02499608,259.08,259.05,3.8608]
[1737695491842,2.3972,259.26,259.02,0.02787941]
[1737695492044,2.3972,259.26,259.1,14.88219382]
[1737695492247,1.6917,259.34,259.15,14.88219382]
[1737695492443,2.2987,259.33,259.2,18.74069382]
[1737695492636,2.2987,259.33,259.15,14.88219382]
[1737695493143,0.02700722,259.27,259.21,0.02732436]
[1737695493542,0.02700722,259.27,259.2,14.88219382]
[1737695493745,0.02700722,259.27,259.23,24.12059046]
[1737695494044,3.9362,259.46,259.23,24.12059046]
[1737695494245,0.02795139,259.28,259.21,0.02571039]
[1737695494441,24.12059046,259.43,259.18,24.12059046]
[1737695494649,24.12059046,259.43,259.22,0.02893004]
[1737695494942,24.12059046,259.33,259.3,3.839e-05]
[1737695495145,3.9362,259.32,259.13,24.12059046]
[1737695495648,1.7392,259.31,259.13,24.12059046]
[1737695495847,1.7392,259.31,259.11,51.58345573]
[1737695496245,0.02523566,259.24,259.18,0.02667888]
[1737695497246,0.02523566,259.24,259.11,51.58345573]
[1737695497848,3.8591,259.17,259.11,51.58345573]
[1737695498043,0.02523566,259.24,259.11,51.58345573]
[1737695498244,0.02455272,259.17,259.11,51.60938934]
[1737695498642,0.02455272,259.17,259.11,51.60876573]
[1737695500055,3.8591,259.19,259.11,51.60876573]
[1737695500253,1.7392,259.31,259.04,100.13400858]
[1737695500559,3.8596,259.16,259.06,3.8609]
[1737695501158,0.02608003,259.14,259.08,0.02743589]
[1737695501354,0.00104884,259.14,259.08,0.02743589]
[1737695502059,3.8609,259.07,259.06,97.43840858]
[1737695502556,0.00104884,259.14,259.04,3.8612]
[1737695502752,0.00104884,259.14,259.06,24.18256203]
[1737695502955,0.04737562,259.18,259.06,24.18256203]
[1737695503155,0.02442039,259.13,259.07,0.02753396]
[1737695504160,0.02442039,259.13,259.08,3.8606]
[1737695504759,0.02442039,259.13,259.07,0.02753396]
[1737695505462,0.02442039,259.13,258.91,24.16011024]
[1737695505862,24.16011024,259.17,258.91,24.16011024]
[1737695506056,24.16011024,259.12,258.91,24.16011024]
[1737695506661,0.02764832,259.07,258.91,154.24573148]
[1737695506863,0.02764832,259.07,259.02,0.02710672]
[1737695507362,24.18775856,259.07,258.91,130.08562124]
[1737695508057,0.02764832,259.07,258.91,130.08562124]
[1737695508362,0.02764832,259.07,258.98,0.02882711]
[1737695508554,3.8611,259.06,258.98,0.02882711]
[1737695508862,0.02764832,259.07,258.98,0.02882711]
[1737695509660,0.02764832,259.07,258.98,3.89092711]
[1737695509961,0.02764832,259.07,258.98,0.02882711]
[1737695511965,3.8618,259.01,258.98,0.02882711]
[1737695512155,0.02764832,259.07,258.98,0.02882711]
[1737695512460,3.8614,259.04,258.98,0.02882711]
[1737695512964,0.02764832,259.07,258.98,0.02882711]
[1737695513558,3.8613,259.05,258.98,0.02882711]